[Event "Coimbra Queima Fitas Open 2024"]
[Site "Coimbra"]
[Date "2024.04.27"]
[Round "4.7"]
[White "Gama, Edivaldo Pereira Da"]
[Black "Gasimov, Eldar Emil Oglu"]
[Result "1-0"]
[ECO "B27"]
[WhiteElo "2109"]
[BlackElo "1752"]
[Annotator "TA"]
[PlyCount "53"]
[EventDate "2024.04.23"]
[EventType "swiss"]
[EventCountry "POR"]
[SourceTitle "playchess.com"]
[Source "ChessBase"]
[SourceQuality "1"]
[TimeControl "5400+30"]

{[%evp 9,53,-40,-30,-36,-42,-58,-62,-136,19,13,27,24,116,120,135,74,220,196,176,162,181,181,204,197,197,191,216,197,290,274,270,240,239,247,280,279,525,510,763,765,1186,1199,1314,1260,29998,1494]} 1. e4 {[%emt 0:00:07]} c5 {[%emt 0:02:45]} 2. Nf3 {[%emt 0:00:08]} g6 {[%emt 0:00:07]} 3. h4 {[%emt 0:00:25]} h5 {[%emt 0:00:06]} 4. Bc4 {[%emt 0:00:25]} Bg7 {[%emt 0:00:07]} 5. Ng5 {[%emt 0:00:23]} e6 {[%emt 0:00:15]} 6. Nc3 {[%emt 0:01:37][%cal Od2d4]} Ne7 {[%emt 0:00:15]} 7. Qf3 {[%emt 0:01:12][%csl Gg5][%cal Rf3f7] [#]} O-O {[%emt 0:08:22]} 8. g4 {[%emt 0:00:44]} (8. d3 $15) 8... hxg4 $2 {[%emt 0:00:42]} (8... d5 $1 $17 {[%cal Rd5c4]} 9. exd5 hxg4) 9. Qxg4 $11 {[%emt 0:00:10]} d5 {[%emt 0:00:08][%cal Bd7d5,Bd5d4][%mdl 32] Strongly threatening ...e5.} 10. Be2 $1 {[%emt 0:00:39]} e5 {[%emt 0:00:08]} (10... f6 $1 $11 {remains equal.}) 11. Qg2 $36 {[%emt 0:00:31][%mdl 2048] Keeping Black busy. White is more active.} f6 {[%emt 0:14:17]} 12. Nf3 {[%emt 0:04:11]} Be6 {[%emt 0:28:42] Black cannot hold the game after this.} (12... Nbc6 $16) 13. h5 $18 {[%emt 0:01:09] [#] aiming for exd5.} d4 {[%emt 0:09:12]} 14. Nb1 {[%emt 0:01:14][%cal Bc3b1,Bb1a3,Ba3c4,Bc4d2,Bd2f1,Bf1g3,Bg3h5,Bh5g7][%mdl 32]} Kf7 {[%emt 0:10:13]} 15. hxg6+ {[%emt 0:01:00]} Ke8 {[%emt 0:01:41]} 16. Rh7 {[%emt 0:00:47]} Rg8 {[%emt 0:00:15]} 17. Nh4 {[%emt 0:00:03][%cal Oh4f5]} Qd7 {[%emt 0:03:14]} 18. Na3 {[%emt 0:01:05]} a6 {[%emt 0:00:20]} (18... Nbc6 {was called for.} 19. d3 Kd8) 19. Nc4 {[%emt 0:00:35]} Ra7 {[%emt 0:00:32]} 20. d3 {[%emt 0:01:44] Hoping for Qf3.} b5 {[%emt 0:00:29]} 21. Nd2 {[%emt 0:00:17]} Nbc6 {[%emt 0:01:02]} 22. Nf1 {[%emt 0:00:21] Ng3 is the strong threat.} f5 $2 {[%emt 0:00:47]} (22... Nb4) 23. Ng3 {[%emt 0:02:21]} f4 {[%emt 0:01:51]} 24. Nh5 {[%emt 0:02:33]} Kf8 {[%emt 0:00:16]} 25. Qg5 {[%emt 0:00:26]} Qc8 {[%emt 0:04:34]} 26. Nxg7 {[%emt 0:01:09]} Nxg6 {[%emt 0:01:55]} 27. Nxg6+ {[%emt 0:00:33] Weighted Error Value: White=0.11 (very precise) /Black=0.69.  Mistake:       	White=1     	Black=5      Inaccurate:     	---       	Black=2      OK:         	White=6     	Black=4      Best:        	White=2     	Black=3      Strong:       	White=1     	---} (27. Qf6+ $142 Bf7 28. Nxg6#) 1-0

[Event "Coimbra Queima Fitas Open 2024"]
[Site "Coimbra"]
[Date "2024.04.27"]
[Round "4.8"]
[White "Faryma, Matviy"]
[Black "Serarols Mabras, Bernat"]
[Result "0-1"]
[ECO "B10"]
[WhiteElo "1993"]
[BlackElo "2361"]
[Annotator "TA"]
[PlyCount "110"]
[EventDate "2024.04.23"]
[EventType "swiss"]
[EventCountry "POR"]
[SourceTitle "playchess.com"]
[Source "ChessBase"]
[SourceQuality "1"]
[TimeControl "5400+30"]

{[%evp 10,110,30,21,35,36,29,21,30,21,15,6,18,9,22,-21,16,-1,0,-12,-10,-14,0,0,14,0,0,0,0,-60,-50,-154,-151,-168,-155,-161,-162,-146,-97,-300,-288,-289,-284,-298,-289,-607,-597,-609,-606,-938,-896,-942,-923,-898,-850,-1065,-1050,-928,-1018,-1337,-1337,-1300,-1278,-1263,-1263,-1042,-796,-970,-885,-6183,-5497,-2549,-1412,-1337,-666,-614,-611,-567,-539,-517,-516,-601,-439,-619,-632,-1047,-960,-955,-916,-776,-705,-1047,-1044,-1084,-1066,-1087,-1047,-1123,-962,-5900,-5691,-2320,-2869]} 1. e4 {[%emt 0:00:04]} c6 {[%emt 0:04:19]} 2. Nf3 {[%emt 0:00:29]} d5 {[%emt 0:00:01]} 3. Nc3 {[%emt 0:00:07]} dxe4 {[%emt 0:00:02]} 4. Nxe4 {[%emt 0:00:09]} Nf6 {[%emt 0:00:08]} 5. Qe2 {[%emt 0:00:50]} Nxe4 {[%emt 0:00:08]} 6. Qxe4 {[%emt 0:00:04]} Nd7 {[%emt 0:00:06]} 7. Bc4 {[%emt 0:00:05]} Nf6 {[%emt 0:00:04] [#]} 8. Ne5 $1 {[%emt 0:00:02][%csl Ge5][%cal Rc4f7]} e6 {[%emt 0:00:01] The position is equal.} 9. Qe2 {[%emt 0:00:11]} b5 {[%emt 0:00:28]} 10. Bb3 {[%emt 0:00:08]} ({But not} 10. Nxc6 Qc7 11. Bd3 (11. Bxb5 $2 a6 $19) 11... a6 $11 (11... Qxc6 $2 12. Bxb5 $18)) 10... Qc7 {[%emt 0:00:06]} 11. d4 {[%emt 0:00:06]} Bd6 {[%emt 0:00:05]} 12. a4 {[%emt 0:05:32]} b4 {[%emt 0:10:40]} 13. Nc4 {[%emt 0:06:35]} Be7 {[%emt 0:01:23]} 14. Bg5 {[%emt 0:00:08]} O-O {[%emt 0:00:36]} 15. O-O-O {[%emt 0:00:50]} c5 {[%emt 0:12:37]} 16. Qe5 {[%emt 0:05:53]} Qc6 {[%emt 0:04:39] [#]} 17. d5 $1 {[%emt 0:37:22]} Nxd5 {[%emt 0:06:58] ...f6 is the strong threat.} 18. Bxe7 {[%emt 0:01:36]} Nxe7 {[%emt 0:00:26]} 19. h4 {[%emt 0:00:11]} (19. Na5 $11 Qb6 20. Nc4) 19... Ba6 $15 {[%emt 0:08:52][%cal Oa6c4]} 20. Rd6 {[%emt 0:04:10]} (20. h5 $15 h6 (20... Qxg2 $2 {loses.} 21. Rhg1 $18) 21. Na5) 20... Qxg2 $17 {[%emt 0:07:03]} 21. Rh2 {[%emt 0:00:06]} Qg1+ {[%emt 0:02:16]} 22. Rd1 {[%emt 0:00:04] [#]} Qg6 {[%emt 0:00:24]} 23. h5 {[%emt 0:02:41]} Qf6 {[%emt 0:07:46]} (23... Qh6+ $142 24. Kb1 Nf5) 24. Qd6 $2 {[%emt 0:03:35] Now White is beyond hope.} (24. Qxf6 $17 {was necessary.} gxf6 25. Rg2+ Kh8 26. Rd7) 24... Bxc4 $19 {[%emt 0:04:07]} 25. Bxc4 {[%emt 0:00:02]} Nc8 {[%emt 0:00:39]} 26. Qg3 {[%emt 0:03:14]} Nb6 {[%emt 0:00:31][%csl LRa4,LRc4]} 27. Bb5 {[%emt 0:04:34]} (27. Qh4) 27... a6 {[%emt 0:02:16] Black is clearly winning.} 28. Bd3 {[%emt 0:00:38]} Nxa4 {[%emt 0:04:01]} 29. Rg1 {[%emt 0:00:38]} c4 {[%emt 0:04:48]} 30. Bxc4 {[%emt 0:00:42]} Qxb2+ {[%emt 0:01:13]} 31. Kd2 {[%emt 0:00:09]} Rad8+ {[%emt 0:00:40]} 32. Bd3 {[%emt 0:01:27]} Nc5 {[%emt 0:01:31]} 33. Ke1 {[%emt 0:00:45]} Nxd3+ {[%emt 0:06:30]} 34. cxd3 {[%emt 0:00:06]} Rc8 {[%emt 0:01:01][%cal Rc8c1]} 35. Kf1 {[%emt 0:00:04]} Rc1+ {[%emt 0:00:07]} 36. Kg2 {[%emt 0:00:04]} Rxg1+ {[%emt 0:00:34]} 37. Kxg1 {[%emt 0:00:08][%mdl 4096] Endgame. KQR-KQR} Qc1+ {[%emt 0:00:14]} 38. Kg2 {[%emt 0:00:04]} h6 {[%emt 0:00:10] White must now prevent ...b3.} 39. Rh4 {[%emt 0:00:03]} b3 {[%emt 0:02:05]} 40. Rg4 {[%emt 0:00:09]} Qc3 {[%emt 0:00:53] Hoping for ...b2.} 41. Rc4 {[%emt 0:00:47]} Qf6 {[%emt 0:00:28]} 42. Rb4 {[%emt 0:00:30]} b2 {[%emt 0:00:18]} 43. d4 {[%emt 0:00:10]} Qf5 {[%emt 0:00:54]} 44. Rxb2 {[%emt 0:00:13]} Qxh5 {[%emt 0:00:08]} 45. Rb6 {[%emt 0:00:41]} Qd5+ {[%emt 0:00:14]} 46. Kh2 {[%emt 0:00:07]} (46. Qf3 $142) 46... a5 {[%emt 0:00:07]} 47. Ra6 {[%emt 0:00:30]} Rc8 {[%emt 0:00:21][%cal Oc8c1] And now ...Rc1! would win.} 48. Qe5 {[%emt 0:00:48]} Qxe5+ {[%emt 0:00:09]} 49. dxe5 {[%emt 0:00:04] KR-KR} Rc5 {[%emt 0:00:11]} 50. f4 {[%emt 0:00:05]} g5 {[%emt 0:00:05]} 51. Kg3 {[%emt 0:00:03]} Kg7 {[%emt 0:00:09]} 52. Ra7 {[%emt 0:00:09]} Kg6 {[%emt 0:00:06]} 53. Kf3 {[%emt 0:00:14]} Rc3+ {[%emt 0:00:11]} 54. Ke4 {[%emt 0:00:19]} Rc4+ {[%emt 0:00:04]} 55. Ke3 {[%emt 0:00:05]} Rxf4 {[%emt 0:00:05] Weighted Error Value: White=0.56/Black=0.09 (flawless) .  Loses game:     	White=1     	---        Mistake:       	White=4     	Black=1      Inaccurate:     	White=3     	Black=2      OK:         	White=10    	Black=13     Best:        	White=1     	Black=2} 0-1

[Event "Coimbra Queima Fitas Open 2024"]
[Site "Coimbra"]
[Date "2024.04.27"]
[Round "4.9"]
[White "Grimm, Daniel"]
[Black "Silva, Lourenco Santa Clara"]
[Result "1-0"]
[ECO "B53"]
[WhiteElo "2296"]
[BlackElo "1893"]
[Annotator "NA RC"]
[PlyCount "118"]
[EventDate "2024.04.23"]
[EventType "swiss"]
[EventCountry "POR"]
[SourceTitle "playchess.com"]
[Source "ChessBase"]
[SourceQuality "1"]
[TimeControl "5400+30"]

1. e4 {[%emt 0:00:17]} c5 {[%emt 0:00:05]} 2. Nf3 {[%emt 0:00:15]} d6 {[%emt 0:00:05]} 3. d4 {[%emt 0:00:26]} cxd4 {[%emt 0:00:05]} 4. Qxd4 {[%emt 0:00:11]} a6 {[%emt 0:01:31]} 5. h3 {[%emt 0:00:27]} Nc6 {[%emt 0:00:26]} 6. Qe3 {[%emt 0:00:19] B53: Sicilian: 2...d6: Lines with Qxd4.} g6 {[%emt 0:05:38]} 7. c4 {[%emt 0:02:11]} Bg7 {[%emt 0:00:59]} 8. Be2 $1 {[%emt 0:00:20]} Nf6 {[%emt 0:00:42]} 9. Nc3 {[%emt 0:00:17]} O-O {[%emt 0:01:00]} 10. O-O {[%emt 0:00:44]} Bd7 {[%emt 0:08:46]} 11. Rd1 {[%emt 0:09:40]} Qc7 {[%emt 0:06:51]} 12. c5 {[%emt 0:06:32]} (12. Rb1 $14 {feels stronger.}) 12... Ne5 {[%emt 0:15:29]} (12... Rfe8 $11 {should be considered.}) 13. Nxe5 {[%emt 0:05:15]} dxe5 {[%emt 0:00:17]} 14. b4 {[%emt 0:03:37]} Rfd8 {[%emt 0:02:54]} 15. Nd5 {[%emt 0:07:01]} Nxd5 {[%emt 0:00:40]} 16. exd5 {[%emt 0:00:23]} ({Don't play} 16. Rxd5 Bc6 17. Rxd8+ Rxd8 $11) 16... Ba4 {[%emt 0:09:02]} 17. Rd2 {[%emt 0:01:12]} b6 {[%emt 0:17:34]} 18. Bb2 {[%emt 0:08:09]} bxc5 {[%emt 0:11:50]} 19. bxc5 {[%emt 0:00:21]} Bb5 {[%emt 0:03:04]} 20. Rad1 {[%emt 0:09:19]} Bxe2 {[%emt 0:03:36]} 21. Rxe2 {[%emt 0:00:14]} Rac8 {[%emt 0:01:01]} 22. Ba3 {[%emt 0:05:06]} (22. Bxe5 Bxe5 23. Qxe5 Qxe5 24. Rxe5 Rxc5 25. Rxe7 Rdxd5 26. Rxd5 Rxd5 $16) 22... Qa5 {[%emt 0:03:14]} 23. Rb2 {[%emt 0:03:41]} Qa4 {[%emt 0:01:53]} 24. Rb3 {[%emt 0:01:44]} ({Better is} 24. Qb3 $18 Qf4 25. c6) 24... e4 {[%emt 0:02:59] [#]} 25. Qc1 $1 {[%emt 0:07:50]} f5 {[%emt 0:01:54]} 26. Qd2 {[%emt 0:07:38]} (26. c6 $18 Bf6 27. c7) 26... Kh8 $2 {[%emt 0:00:47]} (26... Qc4 $16 27. d6 exd6) 27. Qb4 $2 {[%emt 0:01:59]} (27. c6 $18 e6 28. Qc1 exd5 29. c7) 27... Qd7 {[%emt 0:00:49]} (27... Qxb4 $16 28. Bxb4 Bf6) 28. Qb7 {[%emt 0:04:22]} Qe8 $18 {[%emt 0:00:42]} (28... Qxb7 {is a better defense.} 29. Rxb7 Bf6) 29. d6 {[%emt 0:02:25]} exd6 {[%emt 0:00:26]} 30. cxd6 {[%emt 0:00:26]} Rd7 {[%emt 0:00:31]} 31. Qxa6 {[%emt 0:00:56]} f4 {[%emt 0:00:16]} 32. Qe2 {[%emt 0:02:18]} Qe6 {[%emt 0:00:48]} 33. Qg4 {[%emt 0:02:41]} Qxg4 {[%emt 0:00:31]} 34. hxg4 {[%emt 0:00:02]} Be5 {[%emt 0:00:33]} 35. Rd5 {[%emt 0:01:12]} Bf6 {[%emt 0:00:23]} 36. g5 {[%emt 0:01:48]} Bg7 {[%emt 0:00:22]} 37. Rdb5 {[%emt 0:01:58]} e3 {[%emt 0:00:20]} 38. fxe3 {[%emt 0:00:50]} fxe3 {[%emt 0:00:01]} 39. Rb8 {[%emt 0:00:32]} Rf8 {[%emt 0:00:46]} 40. Rxf8+ {[%emt 0:02:54]} Bxf8 {[%emt 0:00:02]} 41. Rd3 {[%emt 0:01:39]} h6 {[%emt 0:00:37]} 42. Kf1 {[%emt 0:00:13]} Kg8 {[%emt 0:00:42]} 43. Ke2 {[%emt 0:00:10]} Kf7 {[%emt 0:00:32]} 44. Kxe3 {[%emt 0:00:14]} Ke6 {[%emt 0:00:09]} 45. Ke4 {[%emt 0:00:17]} hxg5 {[%emt 0:00:33]} 46. Bc5 {[%emt 0:00:24]} Rf7 {[%emt 0:01:12]} 47. g3 {[%emt 0:01:24]} Kd7 {[%emt 0:00:49]} 48. Rf3 {[%emt 0:00:31]} Rxf3 {[%emt 0:00:27]} 49. Kxf3 {[%emt 0:00:02]} Bg7 {[%emt 0:00:35]} 50. Ke4 {[%emt 0:01:04]} Bc3 {[%emt 0:00:30]} 51. g4 {[%emt 0:00:20]} Kc6 {[%emt 0:00:28]} 52. Bd4 {[%emt 0:01:05]} Bb4 {[%emt 0:00:07]} 53. Be5 {[%emt 0:00:10]} Bc5 {[%emt 0:00:31]} 54. Kd3 {[%emt 0:00:30]} Bb4 {[%emt 0:00:53]} 55. Kc4 {[%emt 0:00:17]} Ba3 {[%emt 0:00:31]} 56. Kd4 {[%emt 0:01:15]} Bc5+ {[%emt 0:00:11]} 57. Ke4 {[%emt 0:00:02]} Ba3 {[%emt 0:00:47]} 58. Bg3 {[%emt 0:00:07]} Bc5 {[%emt 0:00:14]} 59. a4 {[%emt 0:00:19]} Bb6 {[%emt 0:00:48]} 1-0

[Event "Coimbra Queima Fitas Open 2024"]
[Site "Coimbra"]
[Date "2024.04.27"]
[Round "4.10"]
[White "Santos, Ricardo Alexandre Lu"]
[Black "Goncalves, Samuel Jesus Pereira"]
[Result "1-0"]
[ECO "D85"]
[WhiteElo "1987"]
[BlackElo "2190"]
[Annotator "NA RC"]
[PlyCount "87"]
[EventDate "2024.04.23"]
[EventType "swiss"]
[EventCountry "POR"]
[SourceTitle "playchess.com"]
[Source "ChessBase"]
[SourceQuality "1"]
[TimeControl "5400+30"]

{[%evp 19,61,22,47,0,0,32767,-19,-22,-1,21,44,13,91,50,53,59,60,41,32767,32767,32767,-16,-11,-35,0,-15,-21,-8,-22,32767,32767,32767,0,0,0,0,0,0,0,0,0,0,0,0]} 1. d4 {[%emt 0:00:05]} Nf6 {[%emt 0:05:16]} 2. c4 {[%emt 0:00:15]} g6 {[%emt 0:00:24]} 3. Nc3 {[%emt 0:00:10]} d5 {[%emt 0:00:09]} 4. Nf3 {[%emt 0:00:18]} Bg7 {[%emt 0:00:06]} 5. cxd5 {[%emt 0:00:09]} Nxd5 {[%emt 0:00:07]} 6. e4 {[%emt 0:00:07]} Nxc3 {[%emt 0:00:06]} 7. bxc3 {[%emt 0:00:04]} c5 {[%emt 0:00:09]} 8. Be3 {[%emt 0:00:24]} Qa5 {[%emt 0:00:07]} 9. Qd2 {[%emt 0:00:33]} O-O {[%emt 0:00:10]} 10. Rc1 {[%emt 0:02:47]} Bg4 {[%emt 0:00:09]} (10... Rd8 $11 {feels stronger.}) 11. Be2 {[%emt 0:01:05]} Nd7 {[%emt 0:00:06]} 12. h3 {[%emt 0:02:11] D85: Exchange Grünfeld: Unusual White 7th moves and lines with 7 Nf3.} Bxf3 {[%emt 0:02:26]} 13. Bxf3 {[%emt 0:00:42]} Rfd8 {[%emt 0:03:57]} 14. d5 {[%emt 0:05:19]} Ne5 {[%emt 0:20:29]} (14... c4 $11 {is superior.}) 15. Be2 {[%emt 0:04:27]} e6 {[%emt 0:00:18]} (15... c4 $11) 16. c4 {[%emt 0:05:38]} Qxd2+ {[%emt 0:00:12]} 17. Bxd2 {[%emt 0:01:21]} exd5 {[%emt 0:09:13]} 18. cxd5 {[%emt 0:01:41]} Rac8 {[%emt 0:03:40]} 19. f4 {[%emt 0:01:16]} Nd7 {[%emt 0:00:30]} 20. Be3 {[%emt 0:10:56]} (20. Kf2 $16) 20... Nf6 $1 {[%emt 0:04:49]} 21. Bg4 {[%emt 0:08:40]} (21. Rxc5 Rxc5 (21... Nxe4 22. Rxc8 Rxc8 23. O-O $11) 22. Bxc5 Nxe4 $19) 21... Ra8 {[%emt 0:12:41]} 22. Bf3 {[%emt 0:09:52] [#]} ({Much weaker is} 22. Bxc5 Nxe4 23. Bf2 Rxd5 $17) 22... Nxe4 $1 {[%emt 0:00:16]} 23. Bxe4 {[%emt 0:00:14]} Re8 {[%emt 0:00:06]} 24. Rc4 {[%emt 0:08:20]} f5 {[%emt 0:08:21]} 25. Ke2 {[%emt 0:13:26]} b5 {[%emt 0:04:51]} (25... b6 $1 $15 26. Bxf5 gxf5) 26. Rxc5 {[%emt 0:00:43]} Rxe4 {[%emt 0:00:09]} 27. Kf3 $1 {[%emt 0:02:01]} (27. Rxb5 $2 {is the wrong capture.} Rae8 28. Rd1 (28. Rb3 $2 Bd4 $19) 28... Rxe3+ $19) 27... Rae8 {[%emt 0:00:05]} 28. Bf2 {[%emt 0:09:08]} Re2 {[%emt 0:14:01]} 29. Rxb5 {[%emt 0:00:59]} Rxa2 {[%emt 0:00:04]} 30. Rhb1 {[%emt 0:00:37]} Bf8 {[%emt 0:03:30]} 31. Bd4 $11 {[%emt 0:04:10]} Re4 {[%emt 0:01:59]} 32. Be5 {[%emt 0:01:41]} Ree2 {[%emt 0:04:06]} 33. Rb8 {[%emt 0:02:28]} Rf2+ {[%emt 0:00:04]} 34. Kg3 {[%emt 0:02:45]} Rxg2+ {[%emt 0:00:06]} 35. Kh4 {[%emt 0:00:08]} Kf7 {[%emt 0:01:26]} 36. d6 {[%emt 0:00:14]} g5+ {[%emt 0:00:48]} 37. Kh5 {[%emt 0:02:54]} Ra3 {[%emt 0:01:40]} 38. h4 {[%emt 0:00:30]} Rg4 {[%emt 0:00:05]} 39. R1b7+ {[%emt 0:00:46]} Ke6 {[%emt 0:00:02]} 40. Re8+ {[%emt 0:00:17]} Kd5 {[%emt 0:00:21]} 41. d7 {[%emt 0:00:57]} Ke4 {[%emt 0:01:18]} 42. d8=Q Rxh4+ {[%emt 0:00:16]} 43. Kxg5 {[%emt 0:00:43]} Rg4+ {[%emt 0:00:47]} 44. Kf6 {[%emt 0:00:16]} 1-0

[Event "Coimbra Queima Fitas Open 2024"]
[Site "Coimbra"]
[Date "2024.04.27"]
[Round "4.11"]
[White "Faryma, Maksym"]
[Black "Pinsach Gelabert, Alexandre"]
[Result "0-1"]
[ECO "C47"]
[WhiteElo "1863"]
[BlackElo "2169"]
[Annotator "TA"]
[PlyCount "80"]
[EventDate "2024.04.23"]
[EventType "swiss"]
[EventCountry "POR"]
[SourceTitle "playchess.com"]
[Source "ChessBase"]
[SourceQuality "1"]
[TimeControl "5400+30"]

{[%evp 9,79,4,10,9,11,14,16,0,26,35,37,27,61,45,43,25,53,41,39,44,71,23,41,15,27,22,23,-6,-18,-10,-11,-22,-6,-67,-77,-102,-57,-56,-64,-32,-44,-92,-97,-249,-298,-290,-291,-287,-284,-327,-306,-473,-375,-373,-365,-2877,-2007,-1087,-980,-29979,-29980,-29985,-29986,-29988,-29989,-29996,-29997,-29997,-29998,-29998,-29999,-29999]} 1. e4 {[%emt 0:00:01]} e5 {[%emt 0:01:23]} 2. Nf3 {[%emt 0:00:10]} Nf6 {[%emt 0:00:27]} 3. Nc3 {[%emt 0:01:59]} Nc6 {[%emt 0:00:17]} 4. a3 {[%emt 0:00:41]} Be7 {[%emt 0:05:35]} 5. d4 {[%emt 0:01:28]} exd4 {[%emt 0:01:21]} 6. Nxd4 {[%emt 0:00:12]} O-O {[%emt 0:00:42]} 7. Nxc6 {[%emt 0:06:41]} dxc6 {[%emt 0:00:38][%cal Bd7c6,Bc6c5,Bc5c4][%mdl 32]} 8. Bd3 {[%emt 0:00:29] The position is equal.} Bg4 {[%emt 0:05:02]} 9. f3 {[%emt 0:07:24]} Be6 {[%emt 0:00:56]} 10. Be3 {[%emt 0:03:01]} c5 {[%emt 0:03:23]} 11. Qe2 {[%emt 0:05:37]} c6 {[%emt 0:00:55]} 12. O-O {[%emt 0:02:01]} b5 {[%emt 0:02:49]} 13. Qf2 {[%emt 0:01:03]} c4 {[%emt 0:02:25]} 14. Be2 {[%emt 0:00:15][%cal Of3f4]} Qc7 {[%emt 0:03:55]} 15. Kh1 {[%emt 0:05:20]} (15. f4 $16) 15... a5 $11 {[%emt 0:02:41]} 16. Rfd1 Rfd8 {[%emt 0:06:05]} 17. Rxd8+ {[%emt 0:10:50]} Qxd8 {[%emt 0:00:41]} 18. e5 {[%emt 0:00:15]} Nd5 {[%emt 0:02:18]} 19. Nxd5 {[%emt 0:01:46]} Bxd5 {[%emt 0:02:01]} 20. Kg1 {[%emt 0:10:05]} Qf8 {[%emt 0:03:06][%cal Oc4c3] White must now prevent ...c3!} 21. Rd1 {[%emt 0:03:19] [#]} (21. Bd4 $11) 21... c3 $1 $15 {[%emt 0:07:48]} 22. b3 {[%emt 0:02:10][%cal Oe2b5]} (22. bxc3 Rb8) 22... Rb8 {[%emt 0:15:46]} 23. a4 {[%emt 0:05:12]} bxa4 {[%emt 0:01:13]} 24. bxa4 {[%emt 0:00:12]} Rb4 {[%emt 0:01:06]} 25. Ra1 {[%emt 0:00:17]} (25. Kh1 $15 {is superior.}) 25... Qb8 $17 {[%emt 0:00:50] Black is more active.} 26. Bd4 $2 {[%emt 0:02:18] This costs White the game.} (26. Bd3 $17 {is a better defense.}) 26... Rb1+ $19 {[%emt 0:02:15]} 27. Rxb1 {[%emt 0:00:12]} Qxb1+ {[%emt 0:00:03]} 28. Bf1 {[%emt 0:00:08] [#]} Bc4 $1 {[%emt 0:01:23]} 29. h3 {[%emt 0:00:27]} h6 {[%emt 0:03:53]} (29... Bxf1 30. Qxf1 Qxc2 31. Qe1 $17) 30. g4 {[%emt 0:09:02]} (30. f4 $142) 30... Bxf1 {[%emt 0:03:10]} 31. Qxf1 {[%emt 0:00:07]} Qxc2 {[%emt 0:00:04][%mdl 4096] Endgame. KQB-KQB} 32. Qc4 $2 {[%emt 0:00:04]} (32. Qe1 Bb4 (32... Qxa4 $2 33. Bxc3 Bc5+ 34. Kg2 $19) 33. e6) 32... Qd1+ {[%emt 0:02:48]} 33. Kg2 {[%emt 0:00:20]} Qd2+ {[%emt 0:05:15]} 34. Kg1 {[%emt 0:02:22]} c2 {[%emt 0:00:53] Black mates.} 35. Bb2 {[%emt 0:00:12]} Bg5 {[%emt 0:01:49]} 36. f4 {[%emt 0:01:38]} Bxf4 {[%emt 0:00:50]} 37. Qxc6 {[%emt 0:00:14]} Be3+ {[%emt 0:01:46]} ({Worse is} 37... c1=B 38. Qc8+ Kh7 39. Qf5+ Kg8 (39... g6 40. Qxf7+ Kh8 41. Qf8+ Kh7 42. Qf7+ Kh8 43. Qf8+ Kh7 44. Qe7+ Kg8 45. Qe8+ Kg7 46. Qe7+ Kh8 47. Qf8+ $11) 40. Qc8+ Kh7 41. Qf5+ g6 42. Qxf7+ Kh8 43. Qf8+ Kh7 44. Qe7+ Kg8 45. Qe8+ Kg7 46. Qe7+ Kg8 47. Qe8+ Kg7 48. Qe7+ Kg8 $11) 38. Kh1 {[%emt 0:00:11]} Qe1+ {[%emt 0:01:01]} 39. Kg2 {[%emt 0:00:11]} Qf2+ {[%emt 0:00:13]} 40. Kh1 {[%emt 0:00:06]} Qg1# {[%emt 0:00:07] Weighted Error Value: White=0.56/Black=0.10 (very precise) .  Mistake:       	White=6     	---        Inaccurate:     	White=2     	Black=5      OK:         	White=7     	Black=6      Best:        	White=1     	Black=4      Strong:       	---       	Black=1      Brilliant:      	---       	Black=1} 0-1

[Event "Coimbra Queima Fitas Open 2024"]
[Site "Coimbra"]
[Date "2024.04.27"]
[Round "4.12"]
[White "Dias, Ivo Rodrigues"]
[Black "Ribeiro, Rafael Alves Figueir"]
[Result "1/2-1/2"]
[ECO "B12"]
[WhiteElo "2145"]
[BlackElo "1927"]
[Annotator "NA RC"]
[PlyCount "72"]
[EventDate "2024.04.23"]
[EventType "swiss"]
[EventCountry "POR"]
[SourceTitle "playchess.com"]
[Source "ChessBase"]
[SourceQuality "1"]
[TimeControl "5400+30"]

{[%evp 8,71,21,20,17,17,9,0,-1,10,44,-16,-6,-28,0,3,6,0,0,32767,32767,32767,32767,32767,32767,32767,32767,32767,32767,32767,32767,32767,32767,-16,-33,-21,-88,-20,32767,-214,-209,-220,-167,-177,-179,-256,32767,32767,32767,-195,32767,-195,32767,-183,-161,-179,-199,-189,-187,-210,-200,-189,-193,32767,-183,-181]} 1. e4 {[%emt 0:09:36]} c6 {[%emt 0:02:00]} 2. d4 {[%emt 0:00:40]} d5 {[%emt 0:00:19]} 3. e5 {[%emt 0:00:31]} Bf5 {[%emt 0:01:43]} 4. Nf3 {[%emt 0:00:13]} e6 {[%emt 0:00:21]} 5. Be2 {[%emt 0:00:09]} c5 {[%emt 0:03:35]} 6. O-O {[%emt 0:06:07]} Nc6 {[%emt 0:09:23]} 7. Be3 {[%emt 0:00:29]} cxd4 {[%emt 0:13:13]} 8. Nxd4 {[%emt 0:00:51]} Nge7 {[%emt 0:00:30]} (8... Nxd4 $11 {feels stronger.} 9. Qxd4 Ne7) 9. c4 {[%emt 0:20:18] B12: Caro-Kann: Advance Variation.} (9. Bb5 $142) 9... Nxd4 {[%emt 0:42:18]} 10. Bxd4 {[%emt 0:01:59]} Nc6 {[%emt 0:02:11]} 11. cxd5 {[%emt 0:00:16]} Qxd5 {[%emt 0:00:33]} 12. Bf3 {[%emt 0:08:01]} Be4 {[%emt 0:04:39]} (12... Qxd4 $2 {too greedy.} 13. Bxc6+ bxc6 14. Qxd4 $18) 13. Nc3 {[%emt 0:02:09]} Bxf3 {[%emt 0:00:05]} 14. Nxd5 {[%emt 0:00:13]} Bxd1 {[%emt 0:00:06]} 15. Nc7+ {[%emt 0:00:09]} Kd7 {[%emt 0:00:05]} 16. Nxa8 {[%emt 0:00:12]} Be2 {[%emt 0:00:04]} 17. Rfc1 {[%emt 0:02:44]} Be7 {[%emt 0:05:10]} 18. Rc2 {[%emt 0:07:53]} Rxa8 {[%emt 0:06:31]} 19. Rxe2 {[%emt 0:00:19]} Nxd4 {[%emt 0:00:05]} 20. Rd2 {[%emt 0:02:15]} Bc5 {[%emt 0:00:05]} 21. Rc1 {[%emt 0:01:53]} Bb6 {[%emt 0:00:30]} 22. Rc4 {[%emt 0:04:07]} Rc8 {[%emt 0:07:31]} 23. Rxc8 $2 {[%emt 0:00:18]} (23. Rdxd4+ $11 Bxd4 24. Rxd4+ Ke7 25. h4) 23... Kxc8 {[%emt 0:00:04]} 24. Kf1 {[%emt 0:00:22]} Nc6 {[%emt 0:00:04]} 25. Re2 {[%emt 0:00:10]} Nb4 {[%emt 0:00:27]} 26. a3 {[%emt 0:00:26]} (26. Re4 {was called for.} Nc6 (26... Nxa2 27. Ra4 $11) 27. Rc4) 26... Nd5 {[%emt 0:00:03]} 27. Re4 {[%emt 0:00:30]} Kd7 {[%emt 0:01:01]} 28. Ke2 {[%emt 0:00:27]} g6 {[%emt 0:01:23]} 29. Rc4 {[%emt 0:00:27]} a6 {[%emt 0:00:29]} 30. g3 {[%emt 0:00:19]} Bc7 {[%emt 0:00:28]} 31. f4 {[%emt 0:00:09]} h5 {[%emt 0:00:16]} 32. Kf3 {[%emt 0:00:36]} Bb6 {[%emt 0:00:35]} 33. Rc1 {[%emt 0:01:15]} Bd4 {[%emt 0:00:03]} 34. Rc2 {[%emt 0:00:12]} Bg1 {[%emt 0:00:42]} 35. Ke4 {[%emt 0:00:58]} Bb6 $19 {[%emt 0:00:35]} 36. Rc1 {[%emt 0:00:48]} Bf2 {[%emt 0:00:29]} 1/2-1/2